[Event "*** MasterClass Titled Tuesday Blitz"]
[Site "Chess.com"]
[Date "2017.10.03"]
[Round "10"]
[White "MaxLeto"]
[Black "Zufi1811"]
[Result "1-0"]
[WhiteElo "2351"]
[BlackElo "2425"]
[TimeControl "180+2"]
[EndTime "15:15:48 PDT"]
[Termination "MaxLeto won by checkmate"]

1. b3 {[%clk 0:03:01.9]} 1... Nf6 {[%clk 0:02:53.2]} 2. Bb2 {[%clk 0:03:03.8]}
2... g6 {[%clk 0:02:53.4]} 3. e3 {[%clk 0:03:04.4]} 3... Bg7 {[%clk 0:02:53.5]}
4. Nf3 {[%clk 0:03:06.1]} 4... O-O {[%clk 0:02:54.7]} 5. Be2 {[%clk 0:03:07.5]}
5... c5 {[%clk 0:02:55.2]} 6. O-O {[%clk 0:03:08]} 6... d5 {[%clk 0:02:55.8]} 7.
d4 {[%clk 0:03:06.3]} 7... Ne4 {[%clk 0:02:56.3]} 8. Qc1 {[%clk 0:02:51.9]} 8...
cxd4 {[%clk 0:02:50.8]} 9. Nxd4 {[%clk 0:02:47.1]} 9... e5 {[%clk 0:02:49.3]}
10. Nf3 {[%clk 0:02:46.9]} 10... Nc6 {[%clk 0:02:49.7]} 11. Rd1 {[%clk
0:02:48.5]} 11... Qa5 {[%clk 0:02:35.1]} 12. a3 {[%clk 0:02:39]} 12... Be6
{[%clk 0:02:23.8]} 13. b4 {[%clk 0:02:35.5]} 13... Qc7 {[%clk 0:02:24.6]} 14. c4
{[%clk 0:02:11.6]} 14... dxc4 {[%clk 0:01:50.1]} 15. Bxc4 {[%clk 0:02:13.5]}
15... Bxc4 {[%clk 0:01:48.5]} 16. Qxc4 {[%clk 0:02:15.4]} 16... Nd6 {[%clk
0:01:48.3]} 17. Qb3 {[%clk 0:02:06.9]} 17... Rad8 {[%clk 0:01:33.3]} 18. Nc3
{[%clk 0:02:06.4]} 18... Qe7 {[%clk 0:01:13.1]} 19. Rac1 {[%clk 0:01:51.9]}
19... e4 {[%clk 0:01:02.7]} 20. Nd5 {[%clk 0:01:47.1]} 20... Qe6 {[%clk
0:01:02.3]} 21. Ng5 {[%clk 0:00:59.8]} 21... Qf5 {[%clk 0:00:59.5]} 22. Rxc6
{[%clk 0:00:40.9]} 22... Qxg5 {[%clk 0:00:51.7]} 23. Rc5 {[%clk 0:00:28.7]}
23... Nf5 {[%clk 0:00:43.6]} 24. Bxg7 {[%clk 0:00:23.6]} 24... Kxg7 {[%clk
0:00:44]} 25. Qc3+ {[%clk 0:00:07.5]} 25... Kh6 {[%clk 0:00:43.8]} 26. Qc2
{[%clk 0:00:06.1]} 26... Rfe8 {[%clk 0:00:33.2]} 27. Nf4 {[%clk 0:00:05.1]}
27... Rxd1+ {[%clk 0:00:29]} 28. Qxd1 {[%clk 0:00:07]} 28... Rd8 {[%clk
0:00:30.3]} 29. Rd5 {[%clk 0:00:05.9]} 29... Rc8 {[%clk 0:00:22.5]} 30. Rd7
{[%clk 0:00:06.8]} 30... Nh4 {[%clk 0:00:20.6]} 31. Rxf7 {[%clk 0:00:02.6]}
31... Qg4 {[%clk 0:00:19.1]} 32. Qf1 {[%clk 0:00:02.7]} 32... Nf3+ {[%clk
0:00:18.4]} 33. Kh1 {[%clk 0:00:04]} 33... Nd2 {[%clk 0:00:19.2]} 34. Qe1 {[%clk
0:00:04.2]} 34... Nb3 {[%clk 0:00:20]} 35. h3 {[%clk 0:00:04.8]} 35... Qg5
{[%clk 0:00:19.4]} 36. Kh2 {[%clk 0:00:05.5]} 36... Rc1 {[%clk 0:00:18.7]} 37.
Qe2 {[%clk 0:00:06.9]} 37... Qe5 {[%clk 0:00:12.3]} 38. Qg4 {[%clk 0:00:06.1]}
38... g5 {[%clk 0:00:08.8]} 39. Qh5# {[%clk 0:00:05.7]} 1-0

[Event "*** MasterClass Titled Tuesday Blitz"]
[Site "Chess.com"]
[Date "2017.10.03"]
[Round "10"]
[White "HanSchut"]
[Black "Bryakin_Mikhail"]
[Result "0-1"]
[WhiteElo "2228"]
[BlackElo "2500"]
[TimeControl "180+2"]
[EndTime "15:16:21 PDT"]
[Termination "Bryakin_Mikhail won on time"]

1. e4 {[%clk 0:03:01.9]} 1... c6 {[%clk 0:03:00.7]} 2. d4 {[%clk 0:03:02.4]}
2... d5 {[%clk 0:03:02.2]} 3. exd5 {[%clk 0:03:03.9]} 3... cxd5 {[%clk
0:03:04.1]} 4. c4 {[%clk 0:03:05.3]} 4... Nf6 {[%clk 0:03:05]} 5. Nc3 {[%clk
0:03:06.8]} 5... g6 {[%clk 0:03:06.5]} 6. cxd5 {[%clk 0:03:07.6]} 6... Nxd5
{[%clk 0:03:06.5]} 7. Qb3 {[%clk 0:03:07.8]} 7... Nxc3 {[%clk 0:03:06.7]} 8. Bc4
{[%clk 0:03:08.6]} 8... e6 {[%clk 0:03:07.8]} 9. bxc3 {[%clk 0:03:09.6]} 9...
Bg7 {[%clk 0:03:09.1]} 10. Nf3 {[%clk 0:03:07.1]} 10... O-O {[%clk 0:03:10.5]}
11. O-O {[%clk 0:03:07.3]} 11... Nc6 {[%clk 0:03:11.9]} 12. Bg5 {[%clk
0:03:03.6]} 12... Bf6 {[%clk 0:03:09.3]} 13. Bxf6 {[%clk 0:03:03.9]} 13... Qxf6
{[%clk 0:03:11.2]} 14. Be2 {[%clk 0:02:59.4]} 14... b6 {[%clk 0:03:10.1]} 15.
Rad1 {[%clk 0:02:54.4]} 15... Bb7 {[%clk 0:03:10.8]} 16. c4 {[%clk 0:02:51.4]}
16... Rfd8 {[%clk 0:03:06]} 17. Qb2 {[%clk 0:02:33.1]} 17... Rd7 {[%clk
0:02:56.4]} 18. Ne5 {[%clk 0:02:12.5]} 18... Nxe5 {[%clk 0:02:49.7]} 19. dxe5
{[%clk 0:02:14.4]} 19... Qg5 {[%clk 0:02:44]} 20. g3 {[%clk 0:02:08.5]} 20...
Rad8 {[%clk 0:02:38.6]} 21. Rxd7 {[%clk 0:01:42.6]} 21... Rxd7 {[%clk
0:02:40.5]} 22. Rd1 {[%clk 0:01:35.6]} 22... Rxd1+ {[%clk 0:02:30.7]} 23. Bxd1
{[%clk 0:01:37.5]} 23... Qf5 {[%clk 0:02:28.3]} 24. f3 {[%clk 0:00:45.3]} 24...
Bxf3 {[%clk 0:02:19.5]} 25. Bc2 {[%clk 0:00:28.4]} 25... Qg5 {[%clk 0:02:08.9]}
26. Qd4 {[%clk 0:00:20.7]} 26... Kg7 {[%clk 0:01:52.8]} 27. Kf2 {[%clk
0:00:21.6]} 27... Bc6 {[%clk 0:01:46.5]} 28. h4 {[%clk 0:00:21.3]} 28... Qc1
{[%clk 0:01:46]} 29. Bd1 {[%clk 0:00:20.9]} 29... h6 {[%clk 0:01:25.8]} 30. Be2
{[%clk 0:00:21.5]} 30... Qh1 {[%clk 0:01:22]} 31. Qf4 {[%clk 0:00:18.2]} 31...
Qe4 {[%clk 0:01:06]} 32. Qf6+ {[%clk 0:00:18.4]} 32... Kg8 {[%clk 0:01:07.2]}
33. Qd8+ {[%clk 0:00:12.9]} 33... Kh7 {[%clk 0:01:08.6]} 34. Qf6 {[%clk
0:00:14.4]} 34... Qf5+ {[%clk 0:01:02.3]} 35. Qxf5 {[%clk 0:00:15.4]} 35... exf5
{[%clk 0:01:03.8]} 36. Ke3 {[%clk 0:00:14.4]} 36... Bd7 {[%clk 0:00:55.2]} 37.
Kd4 {[%clk 0:00:14.5]} 37... Be6 {[%clk 0:00:56.4]} 38. a4 {[%clk 0:00:15.2]}
38... g5 {[%clk 0:00:57.8]} 39. a5 {[%clk 0:00:12.7]} 39... bxa5 {[%clk
0:00:55.5]} 40. c5 {[%clk 0:00:13.6]} 40... a4 {[%clk 0:00:50.6]} 41. Bc4 {[%clk
0:00:14]} 41... a3 {[%clk 0:00:10.3]} 42. Bxe6 {[%clk 0:00:11.8]} 42... fxe6
{[%clk 0:00:12.2]} 43. Kc3 {[%clk 0:00:13.3]} 43... f4 {[%clk 0:00:13.8]} 44.
gxf4 {[%clk 0:00:11.4]} 44... gxf4 {[%clk 0:00:15.4]} 45. c6 {[%clk 0:00:12.6]}
45... f3 {[%clk 0:00:16.9]} 46. c7 {[%clk 0:00:14.2]} 46... f2 {[%clk
0:00:18.4]} 47. c8=Q {[%clk 0:00:15.8]} 47... f1=Q {[%clk 0:00:20]} 48. Qd7+
{[%clk 0:00:12.5]} 48... Kh8 {[%clk 0:00:19.8]} 49. Qe8+ {[%clk 0:00:02]} 49...
Kg7 {[%clk 0:00:20.5]} 0-1

[Event "*** MasterClass Titled Tuesday Blitz"]
[Site "Chess.com"]
[Date "2017.10.03"]
[Round "10"]
[White "evgenysharapov"]
[Black "chessdjw"]
[Result "1-0"]
[WhiteElo "2280"]
[BlackElo "2278"]
[TimeControl "180+2"]
[EndTime "15:16:23 PDT"]
[Termination "evgenysharapov won by resignation"]

1. e4 {[%clk 0:03:01.9]} 1... e5 {[%clk 0:02:57.9]} 2. Nf3 {[%clk 0:03:02.5]}
2... Nc6 {[%clk 0:02:59.5]} 3. Bb5 {[%clk 0:03:03.3]} 3... a6 {[%clk 0:02:59.8]}
4. Ba4 {[%clk 0:03:03.9]} 4... Nf6 {[%clk 0:03:01.1]} 5. O-O {[%clk 0:03:04.2]}
5... Be7 {[%clk 0:03:02.7]} 6. Re1 {[%clk 0:03:04.9]} 6... b5 {[%clk 0:03:04.3]}
7. Bb3 {[%clk 0:03:05.6]} 7... d6 {[%clk 0:03:05.9]} 8. c3 {[%clk 0:03:06.4]}
8... O-O {[%clk 0:03:07.5]} 9. h3 {[%clk 0:03:07.3]} 9... Nb8 {[%clk 0:03:07.6]}
10. d4 {[%clk 0:03:07.8]} 10... Nbd7 {[%clk 0:03:09.2]} 11. Nbd2 {[%clk
0:03:07.5]} 11... c5 {[%clk 0:03:10]} 12. Nf1 {[%clk 0:03:06.6]} 12... Re8
{[%clk 0:03:09.8]} 13. Ng3 {[%clk 0:03:07]} 13... Bf8 {[%clk 0:03:10.7]} 14. Bg5
{[%clk 0:03:02.1]} 14... h6 {[%clk 0:03:08]} 15. Bd2 {[%clk 0:03:02.7]} 15...
exd4 {[%clk 0:03:06.3]} 16. cxd4 {[%clk 0:03:02.6]} 16... cxd4 {[%clk
0:03:07.6]} 17. Nxd4 {[%clk 0:03:03]} 17... Bb7 {[%clk 0:03:08.9]} 18. Bc2
{[%clk 0:02:58.1]} 18... Nc5 {[%clk 0:03:09.3]} 19. Qf3 {[%clk 0:02:47.8]} 19...
Rc8 {[%clk 0:02:57.1]} 20. Rac1 {[%clk 0:02:40.8]} 20... d5 {[%clk 0:02:46.8]}
21. exd5 {[%clk 0:02:36]} 21... Bxd5 {[%clk 0:02:34.2]} 22. Rxe8 {[%clk
0:02:30.1]} 22... Qxe8 {[%clk 0:02:33]} 23. Qf5 {[%clk 0:02:23.1]} 23... Nce4
{[%clk 0:01:11.2]} 24. Nxe4 {[%clk 0:02:11.8]} 24... Bxe4 {[%clk 0:01:11.5]} 25.
Bxe4 {[%clk 0:02:12.2]} 25... Rxc1+ {[%clk 0:01:12.3]} 26. Bxc1 {[%clk
0:02:12.7]} 26... Qxe4 {[%clk 0:01:13]} 27. Qxe4 {[%clk 0:02:13.1]} 27... Nxe4
{[%clk 0:01:14.9]} 28. Kf1 {[%clk 0:02:07.8]} 28... Bc5 {[%clk 0:01:14.2]} 29.
Be3 {[%clk 0:02:07.9]} 29... f6 {[%clk 0:01:13.4]} 30. Ke2 {[%clk 0:02:06.3]}
30... Kf7 {[%clk 0:01:14]} 31. Kd3 {[%clk 0:02:06.9]} 31... Nd6 {[%clk
0:01:13.2]} 32. b3 {[%clk 0:02:07.4]} 32... Ba3 {[%clk 0:01:06]} 33. Nc2 {[%clk
0:02:00.1]} 33... Bb2 {[%clk 0:01:06.7]} 34. Nb4 {[%clk 0:01:52.3]} 34... a5
{[%clk 0:01:05.6]} 35. Nc6 {[%clk 0:01:49.1]} 35... a4 {[%clk 0:01:06.9]} 36.
bxa4 {[%clk 0:01:49.6]} 36... bxa4 {[%clk 0:01:08.8]} 37. Kc2 {[%clk 0:01:35]}
37... Nc4 {[%clk 0:01:01.7]} 38. Bd4 {[%clk 0:01:26]} 38... Bxd4 {[%clk
0:00:49.6]} 39. Nxd4 {[%clk 0:01:26]} 39... Nb6 {[%clk 0:00:44.7]} 40. Kc3
{[%clk 0:01:20.1]} 40... Nd5+ {[%clk 0:00:45.5]} 41. Kc4 {[%clk 0:01:20.8]}
41... Nf4 {[%clk 0:00:46.7]} 42. Kb4 {[%clk 0:01:19.6]} 42... Nxg2 {[%clk
0:00:47.4]} 43. Kxa4 {[%clk 0:01:20.8]} 43... Nf4 {[%clk 0:00:48.9]} 44. Kb5
{[%clk 0:01:20.5]} 44... Ke7 {[%clk 0:00:19.6]} 45. Kc6 {[%clk 0:01:11.4]} 45...
Nxh3 {[%clk 0:00:13.6]} 46. a4 {[%clk 0:01:11.3]} 46... Nxf2 {[%clk 0:00:15.1]}
47. a5 {[%clk 0:01:12.3]} 47... Nd3 {[%clk 0:00:16.7]} 48. Nc2 {[%clk
0:01:02.3]} 48... Ne5+ {[%clk 0:00:09.5]} 49. Kc7 {[%clk 0:01:00.7]} 49... Nd7
{[%clk 0:00:06.6]} 50. a6 {[%clk 0:00:59.1]} 50... Nc5 {[%clk 0:00:07.3]} 51. a7
{[%clk 0:00:58]} 51... Ne6+ {[%clk 0:00:07.7]} 52. Kb6 {[%clk 0:00:54.5]} 52...
h5 {[%clk 0:00:07.6]} 53. a8=Q {[%clk 0:00:55.1]} 1-0

[Event "*** MasterClass Titled Tuesday Blitz"]
[Site "Chess.com"]
[Date "2017.10.03"]
[Round "10"]
[White "GeorgMeier"]
[Black "ArnaudovP"]
[Result "0-1"]
[WhiteElo "2755"]
[BlackElo "2509"]
[TimeControl "180+2"]
[EndTime "15:16:27 PDT"]
[Termination "ArnaudovP won on time"]

1. Nf3 {[%clk 0:03:01.9]} 1... Nf6 {[%clk 0:02:57.8]} 2. g3 {[%clk 0:03:03.8]}
2... d5 {[%clk 0:02:50.3]} 3. Bg2 {[%clk 0:03:05.7]} 3... e6 {[%clk 0:02:51.5]}
4. O-O {[%clk 0:03:07]} 4... c5 {[%clk 0:02:51.6]} 5. c4 {[%clk 0:03:07.7]} 5...
d4 {[%clk 0:02:49.2]} 6. e3 {[%clk 0:03:08.8]} 6... Nc6 {[%clk 0:02:49.7]} 7.
exd4 {[%clk 0:03:03.4]} 7... cxd4 {[%clk 0:02:51.6]} 8. d3 {[%clk 0:03:03.6]}
8... Bd6 {[%clk 0:02:46.4]} 9. Bg5 {[%clk 0:03:03.8]} 9... h6 {[%clk 0:02:44.7]}
10. Bxf6 {[%clk 0:03:04.8]} 10... Qxf6 {[%clk 0:02:45.9]} 11. Nbd2 {[%clk
0:03:06.7]} 11... Qd8 {[%clk 0:02:46.5]} 12. Re1 {[%clk 0:03:02.5]} 12... O-O
{[%clk 0:02:46.7]} 13. Nb3 {[%clk 0:02:58.3]} 13... Bc7 {[%clk 0:02:38.1]} 14.
Qc2 {[%clk 0:02:56.1]} 14... e5 {[%clk 0:02:37.9]} 15. a3 {[%clk 0:02:56.4]}
15... Bd6 {[%clk 0:02:33.1]} 16. Nfd2 {[%clk 0:02:56.8]} 16... Bf5 {[%clk
0:02:30]} 17. c5 {[%clk 0:02:56.5]} 17... Bc7 {[%clk 0:02:30.8]} 18. Nc4 {[%clk
0:02:57.6]} 18... Re8 {[%clk 0:02:30.4]} 19. Nbd2 {[%clk 0:02:57.6]} 19... a5
{[%clk 0:02:24.9]} 20. Rac1 {[%clk 0:02:58.1]} 20... Qd7 {[%clk 0:02:23.1]} 21.
Be4 {[%clk 0:02:57.7]} 21... Be6 {[%clk 0:02:06.1]} 22. Qb3 {[%clk 0:02:55.7]}
22... f5 {[%clk 0:02:00.4]} 23. Bg2 {[%clk 0:02:55.4]} 23... Rab8 {[%clk
0:01:58.8]} 24. Qb5 {[%clk 0:02:55.9]} 24... Bd5 {[%clk 0:01:55.8]} 25. Nd6
{[%clk 0:02:52]} 25... Bxg2 {[%clk 0:01:55.2]} 26. Nxe8 {[%clk 0:02:53.1]} 26...
Bd5 {[%clk 0:01:38.8]} 27. Nxc7 {[%clk 0:02:52.7]} 27... Qxc7 {[%clk 0:01:40]}
28. f3 {[%clk 0:02:35.8]} 28... Rf8 {[%clk 0:01:35.4]} 29. Re2 {[%clk
0:02:32.5]} 29... h5 {[%clk 0:01:34.8]} 30. Rce1 {[%clk 0:02:29]} 30... f4
{[%clk 0:01:35.7]} 31. Kg2 {[%clk 0:02:22.2]} 31... Qf7 {[%clk 0:01:30.2]} 32.
Rf2 {[%clk 0:02:20.4]} 32... fxg3 {[%clk 0:01:27.3]} 33. hxg3 {[%clk 0:02:20.3]}
33... h4 {[%clk 0:01:28.5]} 34. gxh4 {[%clk 0:02:14.9]} 34... Qg6+ {[%clk
0:01:25.7]} 35. Kf1 {[%clk 0:02:15.3]} 35... Na7 {[%clk 0:01:21.4]} 36. Qxa5
{[%clk 0:01:56.8]} 36... Qxd3+ {[%clk 0:01:21.6]} 37. Kg1 {[%clk 0:01:45.6]}
37... Nc6 {[%clk 0:01:16.1]} 38. Qc7 {[%clk 0:01:42.3]} 38... Qf5 {[%clk
0:00:57.8]} 39. Ne4 {[%clk 0:01:31.8]} 39... d3 {[%clk 0:00:52.7]} 40. Re3
{[%clk 0:00:33.7]} 40... Nd4 {[%clk 0:00:46]} 41. Rg2 {[%clk 0:00:29.4]} 41...
Ne6 {[%clk 0:00:31.4]} 42. Qd7 {[%clk 0:00:22.3]} 42... Bxe4 {[%clk 0:00:31.8]}
43. Rxe4 {[%clk 0:00:21.4]} 43... Rd8 {[%clk 0:00:28.8]} 44. Rxg7+ {[%clk
0:00:21.2]} 44... Kh8 {[%clk 0:00:24]} 45. Qe7 {[%clk 0:00:06.6]} 45... d2
{[%clk 0:00:23.1]} 46. Kh2 {[%clk 0:00:07.5]} 46... d1=Q {[%clk 0:00:23.7]} 47.
Reg4 {[%clk 0:00:08.4]} 47... Rd2+ {[%clk 0:00:23.5]} 48. Rg2 {[%clk 0:00:07.8]}
48... Rxg2+ {[%clk 0:00:23.1]} 49. Rxg2 {[%clk 0:00:08.3]} 49... Qdxf3 {[%clk
0:00:23.7]} 50. Qe8+ {[%clk 0:00:08.7]} 50... Nf8 {[%clk 0:00:24.6]} 0-1

[Event "*** MasterClass Titled Tuesday Blitz"]
[Site "Chess.com"]
[Date "2017.10.03"]
[Round "10"]
[White "krzyzan94"]
[Black "eldur16"]
[Result "1-0"]
[WhiteElo "2600"]
[BlackElo "2496"]
[TimeControl "180+2"]
[EndTime "15:16:27 PDT"]
[Termination "krzyzan94 won by resignation"]

1. e4 {[%clk 0:03:01.9]} 1... g6 {[%clk 0:03:00.5]} 2. h4 {[%clk 0:03:02.6]}
2... h5 {[%clk 0:02:59]} 3. d4 {[%clk 0:03:02.8]} 3... d6 {[%clk 0:02:59.7]} 4.
Nc3 {[%clk 0:03:04.2]} 4... Bg7 {[%clk 0:03:00.6]} 5. Bg5 {[%clk 0:03:03.4]}
5... Nf6 {[%clk 0:02:57.5]} 6. e5 {[%clk 0:03:00]} 6... Nfd7 {[%clk 0:02:53.9]}
7. e6 {[%clk 0:02:59.2]} 7... fxe6 {[%clk 0:02:54.5]} 8. Bd3 {[%clk 0:03:01.1]}
8... Nf8 {[%clk 0:02:55]} 9. Nh3 {[%clk 0:03:01.9]} 9... e5 {[%clk 0:02:49.9]}
10. dxe5 {[%clk 0:02:52.4]} 10... Bxe5 {[%clk 0:02:49.5]} 11. Qe2 {[%clk
0:02:40.8]} 11... Nc6 {[%clk 0:02:48.7]} 12. O-O-O {[%clk 0:02:40]} 12... Nd4
{[%clk 0:02:46.1]} 13. Qe3 {[%clk 0:02:34.9]} 13... Nf5 {[%clk 0:02:45.9]} 14.
Qe4 {[%clk 0:02:27.1]} 14... c6 {[%clk 0:02:42.1]} 15. Rhe1 {[%clk 0:01:58.7]}
15... Ne6 {[%clk 0:02:29.5]} 16. f4 {[%clk 0:01:52.2]} 16... Nc5 {[%clk
0:02:14.3]} 17. Qf3 {[%clk 0:01:44.4]} 17... Bxc3 {[%clk 0:02:09.6]} 18. Bxf5
{[%clk 0:01:38.6]} 18... Bxe1 {[%clk 0:02:02.4]} 19. Bxg6+ {[%clk 0:01:37.5]}
19... Kd7 {[%clk 0:01:45.4]} 20. Rxe1 {[%clk 0:01:39.4]} 20... Kc7 {[%clk
0:01:31.4]} 21. Rxe7+ {[%clk 0:01:30.9]} 21... Bd7 {[%clk 0:01:32.4]} 22. b4
{[%clk 0:01:23.1]} 22... Qg8 {[%clk 0:01:28.3]} 23. Bf7 {[%clk 0:01:14.6]} 23...
Qg7 {[%clk 0:01:23.2]} 24. bxc5 {[%clk 0:01:16]} 24... Qa1+ {[%clk 0:01:12.4]}
25. Kd2 {[%clk 0:01:16.7]} 25... Qd4+ {[%clk 0:01:13]} 26. Qd3 {[%clk
0:01:15.8]} 26... Qxc5 {[%clk 0:01:14]} 27. Be6 {[%clk 0:00:42.7]} 27... Rad8
{[%clk 0:01:14.1]} 28. Rg7 {[%clk 0:00:38.3]} 28... Kc8 {[%clk 0:01:04.3]} 29.
f5 {[%clk 0:00:34.2]} 29... Bxe6 {[%clk 0:01:00.3]} 30. fxe6 {[%clk 0:00:36.1]}
30... Rde8 {[%clk 0:00:51.6]} 31. Nf4 {[%clk 0:00:37]} 31... Rhf8 {[%clk
0:00:49.3]} 32. Qe3 {[%clk 0:00:28.3]} 32... Qa5+ {[%clk 0:00:45]} 33. Qc3
{[%clk 0:00:22.7]} 33... Qxa2 {[%clk 0:00:36.1]} 34. e7 {[%clk 0:00:23.4]} 34...
Rf5 {[%clk 0:00:36.2]} 35. Qd3 {[%clk 0:00:16.8]} 35... Qa5+ {[%clk 0:00:34.2]}
36. Qc3 {[%clk 0:00:18]} 36... Qb6 {[%clk 0:00:34.2]} 37. Qe3 {[%clk 0:00:17.8]}
37... Qa5+ {[%clk 0:00:34.3]} 38. Qc3 {[%clk 0:00:17.8]} 38... Qb6 {[%clk
0:00:34.8]} 39. Qh3 {[%clk 0:00:18.7]} 39... Qa5+ {[%clk 0:00:34.8]} 40. Kd1
{[%clk 0:00:18.8]} 40... Kb8 {[%clk 0:00:33.6]} 41. Qd3 {[%clk 0:00:16.6]} 41...
Qc5 {[%clk 0:00:29.1]} 42. Kd2 {[%clk 0:00:12.1]} 42... Rxf4 {[%clk 0:00:27.9]}
43. Bxf4 {[%clk 0:00:13.9]} 43... Qf2+ {[%clk 0:00:28.8]} 44. Qe2 {[%clk
0:00:11.3]} 44... Qxf4+ {[%clk 0:00:29.7]} 45. Qe3 {[%clk 0:00:12.9]} 45...
Qxe3+ {[%clk 0:00:29.6]} 46. Kxe3 {[%clk 0:00:14.8]} 46... Kc7 {[%clk
0:00:30.2]} 47. g4 {[%clk 0:00:16.2]} 47... hxg4 {[%clk 0:00:29.7]} 48. h5
{[%clk 0:00:17.8]} 48... Kd7 {[%clk 0:00:29.3]} 49. h6 {[%clk 0:00:19.3]} 49...
Rh8 {[%clk 0:00:30.1]} 50. h7 {[%clk 0:00:20.6]} 50... g3 {[%clk 0:00:26.2]} 51.
Kf3 {[%clk 0:00:20.5]} 51... g2 {[%clk 0:00:24.2]} 52. Kxg2 {[%clk 0:00:21.4]}
52... Rxh7 {[%clk 0:00:21.9]} 53. Rxh7 {[%clk 0:00:22.5]} 53... a5 {[%clk
0:00:22.9]} 54. Kf3 {[%clk 0:00:24.1]} 54... a4 {[%clk 0:00:24.1]} 55. e8=Q+
{[%clk 0:00:25.1]} 55... Kxe8 {[%clk 0:00:24.7]} 56. Rxb7 {[%clk 0:00:27]} 1-0

[Event "*** MasterClass Titled Tuesday Blitz"]
[Site "Chess.com"]
[Date "2017.10.03"]
[Round "10"]
[White "VladDobrov"]
[Black "chessking2151"]
[Result "1-0"]
[WhiteElo "2620"]
[BlackElo "2389"]
[TimeControl "180+2"]
[EndTime "15:16:38 PDT"]
[Termination "VladDobrov won by resignation"]

1. d4 {[%clk 0:03:01.9]} 1... Nf6 {[%clk 0:03:00.8]} 2. c4 {[%clk 0:03:03.8]}
2... e6 {[%clk 0:03:00.7]} 3. Nf3 {[%clk 0:03:04.9]} 3... b6 {[%clk 0:02:59.9]}
4. Nc3 {[%clk 0:03:05.7]} 4... Bb7 {[%clk 0:03:01.2]} 5. a3 {[%clk 0:03:06.7]}
5... d5 {[%clk 0:03:00]} 6. Bg5 {[%clk 0:03:07.3]} 6... Nbd7 {[%clk 0:02:59.3]}
7. cxd5 {[%clk 0:03:01.3]} 7... exd5 {[%clk 0:02:57.2]} 8. Qa4 {[%clk
0:02:53.6]} 8... c6 {[%clk 0:02:55.8]} 9. e3 {[%clk 0:02:51.2]} 9... b5 {[%clk
0:02:55.7]} 10. Qc2 {[%clk 0:02:51]} 10... h6 {[%clk 0:02:56]} 11. Bh4 {[%clk
0:02:51.6]} 11... Be7 {[%clk 0:02:56.9]} 12. Bd3 {[%clk 0:02:52.1]} 12... O-O
{[%clk 0:02:57.2]} 13. O-O {[%clk 0:02:52]} 13... Nb6 {[%clk 0:02:57.5]} 14. b3
{[%clk 0:02:47.5]} 14... Rc8 {[%clk 0:02:56.4]} 15. Ne5 {[%clk 0:02:44.4]} 15...
a6 {[%clk 0:02:52.8]} 16. Bf5 {[%clk 0:02:39.3]} 16... Rc7 {[%clk 0:02:51.3]}
17. Nd3 {[%clk 0:02:25.8]} 17... Bc8 {[%clk 0:02:40.8]} 18. Bxc8 {[%clk
0:02:18.2]} 18... Rxc8 {[%clk 0:02:42.7]} 19. a4 {[%clk 0:02:16]} 19... b4
{[%clk 0:02:40.6]} 20. Ne2 {[%clk 0:02:17.1]} 20... a5 {[%clk 0:02:42.1]} 21. f3
{[%clk 0:02:04.3]} 21... Nbd7 {[%clk 0:02:29]} 22. Rac1 {[%clk 0:01:59]} 22...
Qb6 {[%clk 0:02:24.3]} 23. Qd2 {[%clk 0:01:57.3]} 23... c5 {[%clk 0:02:20.2]}
24. dxc5 {[%clk 0:01:51.3]} 24... Nxc5 {[%clk 0:02:21.5]} 25. Nxc5 {[%clk
0:01:51.8]} 25... Bxc5 {[%clk 0:02:23.4]} 26. Nd4 {[%clk 0:01:51.7]} 26... Bxd4
{[%clk 0:02:23.1]} 27. exd4 {[%clk 0:01:45.2]} 27... Nd7 {[%clk 0:02:22.7]} 28.
Bf2 {[%clk 0:01:33.6]} 28... Rfe8 {[%clk 0:02:06.9]} 29. h4 {[%clk 0:01:32.4]}
29... Qb7 {[%clk 0:01:57.8]} 30. Qd3 {[%clk 0:01:31.4]} 30... Nf8 {[%clk
0:01:49.4]} 31. Rc5 {[%clk 0:01:25.8]} 31... Ne6 {[%clk 0:01:38.1]} 32. Rb5
{[%clk 0:01:26]} 32... Qa8 {[%clk 0:01:30.3]} 33. Qf5 {[%clk 0:01:21.1]} 33...
Rc3 {[%clk 0:01:26.9]} 34. Qxd5 {[%clk 0:01:11.7]} 34... Nf4 {[%clk 0:00:57.7]}
35. Qxa8 {[%clk 0:01:02.4]} 35... Rxa8 {[%clk 0:00:59.6]} 36. Rb1 {[%clk
0:01:01.8]} 36... Rd3 {[%clk 0:00:56.1]} 37. Kf1 {[%clk 0:00:57.8]} 37... Rc8
{[%clk 0:00:50.2]} 38. Rc5 {[%clk 0:00:56.4]} 38... Rc3 {[%clk 0:00:46.4]} 39.
Rxc8+ {[%clk 0:00:54.3]} 39... Rxc8 {[%clk 0:00:46.9]} 40. Be3 {[%clk
0:00:52.6]} 40... Nd5 {[%clk 0:00:46.8]} 41. Bd2 {[%clk 0:00:53.8]} 41... Rc2
{[%clk 0:00:45.3]} 42. Ke2 {[%clk 0:00:55.2]} 42... Nc3+ {[%clk 0:00:42.9]} 43.
Kd3 {[%clk 0:00:56.4]} 43... Rxd2+ {[%clk 0:00:44.4]} 44. Kxd2 {[%clk
0:00:58.3]} 44... Nxb1+ {[%clk 0:00:45.9]} 45. Kd3 {[%clk 0:00:59.9]} 45... Nc3
{[%clk 0:00:46.7]} 46. Kc4 {[%clk 0:01:01.2]} 46... Kf8 {[%clk 0:00:36.9]} 47.
Kc5 {[%clk 0:01:02.4]} 47... Ne2 {[%clk 0:00:23.6]} 48. Kb5 {[%clk 0:00:56.3]}
48... Nxd4+ {[%clk 0:00:20.9]} 49. Kxa5 {[%clk 0:00:57.6]} 49... Nxb3+ {[%clk
0:00:18.8]} 50. Kxb4 {[%clk 0:00:59.5]} 50... Nd4 {[%clk 0:00:20.3]} 51. Kc5
{[%clk 0:01:00.4]} 51... Ne6+ {[%clk 0:00:20.8]} 52. Kd6 {[%clk 0:01:01.4]}
52... Ke8 {[%clk 0:00:20.8]} 53. a5 {[%clk 0:01:02.8]} 53... Kd8 {[%clk
0:00:21.9]} 54. a6 {[%clk 0:01:04.3]} 54... Nd4 {[%clk 0:00:22.1]} 55. Kc5
{[%clk 0:01:03.1]} 55... Ne6+ {[%clk 0:00:21.9]} 56. Kc6 {[%clk 0:00:58.9]}
56... Kc8 {[%clk 0:00:21]} 57. a7 {[%clk 0:01:00.3]} 57... Nc7 {[%clk
0:00:22.4]} 58. h5 {[%clk 0:01:00.7]} 58... f6 {[%clk 0:00:13.6]} 59. g4 {[%clk
0:01:01.5]} 59... Na8 {[%clk 0:00:14.1]} 60. Kd6 {[%clk 0:01:02.6]} 60... Kb7
{[%clk 0:00:15.5]} 61. Ke6 {[%clk 0:01:03.6]} 61... Kxa7 {[%clk 0:00:16.5]} 62.
Kf7 {[%clk 0:01:05]} 62... Kb6 {[%clk 0:00:16.7]} 63. Kxg7 {[%clk 0:01:06.4]}
63... Kc6 {[%clk 0:00:18.3]} 64. Kxh6 {[%clk 0:01:07.5]} 64... Kd7 {[%clk
0:00:19.8]} 65. Kg7 {[%clk 0:01:01.8]} 65... Ke7 {[%clk 0:00:19.6]} 66. h6
{[%clk 0:01:03.2]} 66... Nc7 {[%clk 0:00:19.5]} 67. h7 {[%clk 0:01:04.5]} 67...
Ne8+ {[%clk 0:00:20.9]} 68. Kg6 {[%clk 0:01:04.7]} 1-0